Cogmind - Beta 15 @@@ ROGUE MODE // 2025.07.24 @ 13:01:58 Player: Jiber Result: Destroyed by S-10 Pest with Light Assault Rifle Performance ------------- Evolutions (0) 0 Regions Visited (2) 400 Robots Destroyed (8) 40 Value Destroyed (132) 132 Prototype IDs (0) 0 Alien Tech Used (0) 0 Bonus (0) 0 TOTAL SCORE: 572 Bonus ------- None Cogmind --------- Core Integrity 0/250 Matter 148/300 Energy 100/100 System Corruption 0% Temperature Cool (0) Movement Core (250) Ox4 Location -10/Mines Parts ------- > --- POWER (1) -------- (None) > --- PROPULSION (2) --- (None) > --- UTILITY (2) ------ Medium Storage Unit Light Armor Plating > --- WEAPON (2) ------- Light Assault Rifle > --- INVENTORY (10) --- Large Battery (200) Seismic Detector Backup Plating I Light Assault Rifle Mining Laser Mining Laser Peak State ------------ > --- POWER ------------ Ion Engine > --- PROPULSION ------- Aluminum Leg Aluminum Leg > --- UTILITY ---------- Medium Storage Unit Backup Plating I > --- WEAPON ----------- Light Assault Rifle Rocket Launcher > --- INVENTORY -------- Light Armor Plating Light Assault Rifle Mining Laser Mining Laser [Rating: 8] Favorites ----------- Power Ion Engine Engine Ion Engine Propulsion Aluminum Leg Leg Aluminum Leg Utility Medium Storage Unit Storage Medium Storage Unit Protection Backup Plating I Weapon Light Assault Rifle Ballistic Gun Light Assault Rifle Launcher Rocket Launcher Build | -11 -10 -10 ------- Run | Yrd Mat Min Slots Evolved . | . . . Power . | . . . Propulsion . | . . . Utility . | . . . Weapon . | . . . Parts Attached 9 | 5 2 2 Power 1 | 1 . . Engine 1 | 1 . . Core . | . . . Reactor . | . . . Propulsion 2 | 2 . . Treads . | . . . Leg 2 | 2 . . Wheel . | . . . Hover . | . . . Flight . | . . . Utility 3 | 1 1 1 Device . | . . . Storage 2 | 1 1 . Processor . | . . . Hackware . | . . . Protection 1 | . . 1 Artifact . | . . . Weapon 3 | 1 1 1 Energy Gun . | . . . Energy Cannon . | . . . Ballistic Gun 2 | 1 1 . Ballistic Cannon . | . . . Launcher 1 | . . 1 Special Weapon . | . . . Impact Weapon . | . . . Slashing Weapon . | . . . Piercing Weapon . | . . . Special Melee Weapon . | . . . Unidentified Prototypes . | . . . Parts Lost 4 | . . 4 Power 1 | . . 1 Propulsion 2 | . . 2 Utility . | . . . Weapon 1 | . . 1 Highest Loss Streak 4 | . . 4 To Critical Strikes . | . . . Average Backups 2 | . . 4 Power . | . . . Propulsion . | . . . Utility 1 | . . 2 Weapon 1 | . . 2 Tool/Special . | . . . Unused Backups 2 | . . 2 Power . | . . . Propulsion . | . . . Utility 2 | . . 2 Weapon . | . . . Tool/Special . | . . . Average Slot Usage (%) 95 | . 98 93 Engine 13 | . 14 12 Leg 25 | . 28 22 Storage 14 | . 14 14 Protection 13 | . 12 14 Ballistic Gun 21 | . 28 15 Launcher 6 | . . 12 Peak Build Rating 8 | 5 7 8 Average Rating 6 | 3 6 7 On Entrance 4 | . 5 7 Naked Turns . | . . . Heaviest Build 23 | 11 18 23 Greatest Support 20 | 20 20 20 Greatest Overweight (x) 7 | . . 7 Average Overweight (x) . | . . 1 Largest Inventory Capacity 10 | 8 10 10 Average Capacity 9 | 7 9 10 Most Carried 6 | 5 3 6 Average Carried 2 | 1 . 5 Final Capacity 10 | 8 10 10 Final Carried 6 | 1 3 6 Class Distribution -------------------- 100% | Mutant Dominant Class ---------------- Mutant | -10/Materials Mutant | -10/Mines Resources | -11 -10 -10 ----------- Run | Yrd Mat Min Matter Collected 324 | 202 97 25 Remotely . | . . . Salvage Created 129 | . 97 32 Parts 8 | . 2 6 Haulers Intercepted . | . . . Recyclers Shooed 1 | . 1 . Parts Field Recycled . | . . . Retrieved Matter . | . . . Parts Self-Destructed . | . . . Prevented . | . . . Kills | -11 -10 -10 ------- Run | Yrd Mat Min Combat Hostiles Destroyed 7 | . 2 5 Guns 4 | . 2 2 AOE 3 | . . 3 Classes Destroyed 3 | . 1 2 Worker 1 | . . 1 Swarmer 5 | . . 5 Grunt 2 | . 2 . Best Kill Streak 3 | . 2 3 Combat Bots Only 3 | . 2 3 Max Kills in Single Turn 2 | . 1 2 Gunslinging . | . . . Exploded 1 | . . 1 Melee . | . . . Uniques/NPCs Destroyed . | . . . Combat | -11 -10 -10 -------- Run | Yrd Mat Min Hostile Shots Fired 84 | . 28 56 Missed 19 | . 5 14 Hits 65 | . 23 42 Projectile 65 | . 23 42 Critical Strikes 3 | . 1 2 Damage Taken 745 | . 297 448 Core 252 | . 76 176 Absorbed by Shields . | . . . Core Remaining (%) 100 | 100 . . Volleys Fired 41 | . 22 19 Largest 2 | . 2 2 Hottest 53 | . 40 53 Shots Fired 76 | . 44 32 Gun 63 | . 44 19 Cannon . | . . . Launcher 13 | . . 13 Special . | . . . Kinetic 63 | . 44 19 Thermal . | . . . Explosive 13 | . . 13 Electromagnetic . | . . . Robot Hit Streak 5 | . 5 3 Robot Miss Streak 5 | . 4 5 Penetration Max . | . . . Secondary Targets . | . . . Shots Hit Robots 33 | . 25 8 Core Hits 21 | . 9 12 Critical Kills . | . . . Critical Parts Destroyed . | . . . Critical Strikes . | . . . Melee Attacks . | . . . Impact . | . . . Slashing . | . . . Piercing . | . . . Sneak Attacks . | . . . Combat Hostiles . | . . . Follow-up Attacks . | . . . Damage Inflicted 601 | . 191 410 Guns 240 | . 191 49 Cannons . | . . . Explosions 361 | . . 361 Melee . | . . . Ramming . | . . . Kinetic 240 | . 191 49 Thermal . | . . . Explosive 361 | . . 361 Electromagnetic . | . . . Impact . | . . . Slashing . | . . . Piercing . | . . . Highest Corruption . | . . . Average Corruption . | . . . Corruption Purged . | . . . Corruption Blocked . | . . . Overload Shots . | . . . Overflow Damage 45 | . . 45 Projectiles . | . . . Explosions 45 | . . 45 Melee . | . . . Knockbacks . | . . . Impact . | . . . Kinetic . | . . . Secondary . | . . . Self-Inflicted Damage 117 | . . 117 Shots 6 | . . 6 Rammed . | . . . Targets Rammed . | . . . Kicked . | . . . Crushed . | . . . Highest Temperature 77 | . 77 28 Average Temperature 23 | . 31 10 Received Heat Transfer 180 | . 180 . Siege Activations . | . . . Martial Activations . | . . . Shielding Activations . | . . . Robots Disrupted . | . . . Combat Hostiles . | . . . Robots Corrupted . | . . . Combat Hostiles . | . . . Parts Fried . | . . . Impact Corruptions . | . . . Robots Melted . | . . . Combat Hostiles . | . . . Parts Melted . | . . . Heat Transferred . | . . . Parts Sabotaged . | . . . Parts Stolen . | . . . Parts Stripped . | . . . Power Chain Reactions . | . . . Alert | -11 -10 -10 ------- Run | Yrd Mat Min Maximum Alert Level . | . . . Low Security (%) 100 | 100 100 100 Level 1 . | . . . Level 2 . | . . . Level 3 . | . . . Level 4 . | . . . Level 5 . | . . . High Security . | . . . Max Security . | . . . Peak Influence 147 | . 40 147 Initial . | . . . Average 13 | . 9 19 Influence Increases 263 | . 56 207 Destroy 0b10 Robot/C 140 | . 40 100 Destroy 0b10 Robot/NC 5 | . . 5 Destroy Leader 20 | . 10 10 Successful Hack 6 | . 6 . Destroy Structure 62 | . . 62 Lose Combat Pursuer 30 | . . 30 Influence Decreases 126 | . 56 70 Time Decay 86 | . 56 30 Lost Part 40 | . . 40 Squads Dispatched . | . . . Investigation . | . . . Extermination . | . . . Reinforcement . | . . . Assault . | . . . Garrison . | . . . Intercept . | . . . Searches Triggered . | . . . Construction Impeded . | . . . Haulers Reinforced . | . . . Active Scanning Responses . | . . . Cargo Convoy Interrupts . | . . . Stealth | -11 -10 -10 --------- Run | Yrd Mat Min Distress Signals 1 | . 1 . Communications Jammed . | . . . Distress Signals . | . . . Times Spotted 15 | . 7 8 Peak Tracking Total 4 | . 4 4 Tactical Retreats 2 | . . 2 Traps | -11 -10 -10 ------- Run | Yrd Mat Min Traps Triggered . | . . . Indirectly . | . . . Trap Hack Attempts . | . . . Triggered . | . . . Disarmed . | . . . Reprogrammed . | . . . Reused . | . . . Traps Extracted . | . . . Installed . | . . . Triggered . | . . . Machines | -11 -10 -10 ---------- Run | Yrd Mat Min Machines Disabled . | . . . Max in Single Turn . | . . . Machines Repaired . | . . . Machines Dismantled . | . . . Machines Sabotaged . | . . . Overloaded Fab Kills . | . . . Hacking | -11 -10 -10 --------- Run | Yrd Mat Min Machines Accessed 1 | . 1 . Terminals . | . . . Fabricators . | . . . Repair Stations 1 | . 1 . Recycling Units . | . . . Scanalyzers . | . . . Garrison Access . | . . . Total Hacks 1 | . 1 . Successful 1 | . 1 . Failed . | . . . Catastrophic . | . . . Database Lockouts . | . . . Manual . | . . . Terminals . | . . . Fabricators . | . . . Repair Stations 1 | . 1 . Recycling Units . | . . . Scanalyzers . | . . . Garrison Access . | . . . Terminal Hacks . | . . . Fabricator Hacks . | . . . Repair Station Hacks 1 | . 1 . Refit 1 | . 1 . Recycling Unit Hacks . | . . . Scanalyzer . | . . . Garrison Access Hacks . | . . . Unauthorized Hacks . | . . . Terminals . | . . . Fabricators . | . . . Repair Stations . | . . . Recycling Units . | . . . Scanalyzers . | . . . Garrison Access . | . . . Data Cores Recovered . | . . . Used . | . . . Hacking Detections . | . . . Full Trace Events . | . . . Feedback Events . | . . . Feedback Blocked . | . . . Robot Schematics Acquired . | . . . Robots Built . | . . . Authchips . | . . . Time . | . . . Total Robot Build Rating . | . . . Part Schematics Acquired . | . . . Parts Built . | . . . Authchips . | . . . Time . | . . . Total Part Build Rating . | . . . Parts Repaired . | . . . Time . | . . . Parts Recycled . | . . . Recycled Matter . | . . . Retrieved Matter . | . . . Retrieved Components . | . . . Parts Scanalyzed . | . . . Part Schematics Acquired . | . . . Parts Damaged . | . . . Bothacking | -11 -10 -10 ------------ Run | Yrd Mat Min Used RIF Installer . | . . . Robots Hacked . | . . . Non-combat . | . . . Combat . | . . . Robot Hacks Applied . | . . . Relay Couplers Released . | . . . Fabnet Peak Effective % . | . . . Robots Rewired . | . . . Allies Hacked . | . . . Hacks Repelled . | . . . Allies | -11 -10 -10 -------- Run | Yrd Mat Min Total Allies . | . . . Largest Group . | . . . Highest-Rated Group . | . . . Highest-Rated Ally . | . . . Total Orders . | . . . Ally Attacks . | . . . Total Damage . | . . . Kills . | . . . Allies Corrupted . | . . . Allies Melted . | . . . Intel | -11 -10 -10 ------- Run | Yrd Mat Min Active Infowar (turns) . | . . . Robot Analysis Total . | . . . Derelict Logs Recovered 1 | . . 1 Drone Launches . | . . . Drone Recoveries . | . . . Exploration | -11 -10 -10 ------------- Run | Yrd Mat Min Turns Passed 535 | 54 233 248 Spaces Moved 285 | 47 141 97 Core 22 | 18 . 4 Treads . | . . . Legs 263 | 29 141 93 Wheels . | . . . Hover . | . . . Flight . | . . . Fastest Speed 50 | 50 120 120 Average Speed 141 | 93 120 195 Slowest Speed 400 | 120 120 400 Overloaded Moves . | . . . Propulsion Burnouts . | . . . Robots Hopped . | . . . Potential Cave-ins . | . . . Cave-ins Triggered . | . . . Exploration Rate (%) 21 | 3 30 30 Regions Visited 2 Branch Regions 1 Pre-discovered Areas . | . . . Known Exits Taken . | . . . Unknown Exits Taken 2 | 1 1 . Scrap Searched 1 | . . 1 Spaces Dug . | . . . Terrain Destroyed 128 | . . 128 Melee . | . . . Projectile . | . . . AOE 128 | . . 128 Terrain Rammed . | . . . Walls Destroyed . | . . . Machines Disabled . | . . . Actions | -11 -10 -10 --------- Run | Yrd Mat Min Total 353 | 57 169 127 Wait 6 | . . 6 Move 283 | 46 140 97 Hop . | . . . Pick Up 13 | 6 4 3 Fast Attach . | . . . Attach 6 | 5 1 . Detach . | . . . Swap 3 | . 1 2 Drop 1 | . 1 . Fire 41 | . 22 19 Melee . | . . . Ram . | . . . Kick . | . . . Crush . | . . . Escape Stasis . | . . . Rewire . | . . . Trap . | . . . Miscellaneous . | . . . Route ------- -11/Scrapyard -10/Materials -10/Mines (discovered 1 exit: [*Mat]) History --------- Turn | Location | Event 6 | -11/Scrapyard | Discovered new exit (range 14) 55 | -11/Scrapyard | Entered Materials 249 | -10/Materials | Discovered new exit (range 11) 288 | -10/Materials | Entered Mines 295 | -10/Mines | Received a Rocket Launcher from a helpful Derelict 321 | -10/Mines | Build established: Mutant 323 | -10/Mines | Discovered new exit (range 15) 458 | -10/Mines | Learned Materials security intel 480 | -10/Mines | Core integrity fell below 50% 518 | -10/Mines | Core integrity fell below 20% 536 | -10/Mines | Destroyed by S-10 Pest with Light Assault Rifle Last Messages --------------- 00513_ Ion Engine destroyed. 00513_ Destroyed Ion Engine. 00513_ Critical hit (Destroy). 00516_ The unstable cave ceiling collapses. 00516_ R-06 Scavenger collects Flight Unit. 00516_ S-10 Pest destroyed. 00516_ Destroyed Flight Unit. 00517_ The unstable cave ceiling collapses. 00518_ U-05 Engineer builds a Wall. 00520_ The unstable cave ceiling collapses. 00521_ K-01 Serf collects debris. 00521_ S-10 Pest destroyed. 00525_ The unstable cave ceiling collapses. 00525_ R-06 Scavenger crushed by falling debris. 00525_ R-06 Scavenger system corrupted by crushing effect. 00526_ The unstable cave ceiling collapses. 00527_ S-10 Pest destroyed. 00528_ The unstable cave ceiling collapses. 00534_ Rocket Launcher destroyed. Map ----- +----------------------------------------------------+ | ??????????????????????????????????????????? | | ??????????????????????????????????????????? | | ??????????????????????????????????????????? | | ??????????????????????????????????????????? | | ??????????????????????????????????????????? | | ??????????????????????????????????????????? | | ??????????????????????????????????????????? | | ??????????????????????????????????????????? | | ??????????????????????????????????????????? | | ??????????????????????????????????????????? | | ??????????????????????????????????????????? | | ??????????????????????????????????????????? | | ??????????????????????????????????????????? | | ??????????????????????????????????????????? | | ????# ????????????????????????????????????? | | ????# #####?????????????????????????? | | ?????# #?????????????????????????? | | ???????## ## #?????????????????????????? | | ????????#?????# #?????????????????????????? | | ??????????????# ######????????????????????? | | ??????????????# #????????????????????? | | ??????????????# #### #######??#???????????? | | ??????????????# # ## ?????????? | | ?????????????## # ????????? | | ????????????## #u [ ????????? | | ????## ###### @ % #???????? | | ????# s # ?????? | | ????# ###### ?????? | | ????????????### # ??????? | | ??????????????### # # # #??????? | | ????????????????# ## # #??? ???????? | | ????????????????# ### ??????????? | | ????????????????# % ##??????????? | | ????????????????# ########## ####???????? | | ????????????????# #????????## ##??????? | | ????????????????# #????????## ## # | | ????????????????# #??????### #? | | ????????????????# #?????## ## ##? | | ????????????????# #?????# ##?? ####?? | | ????????????????# #?????# ##????##????? | | ????????????????# ####### ##??????????? | | ????????????????# ###????????? | | ?????????????????####### ##???????? | | ??????????????????????## """ #???????? | | ??????????????????????# """ #???????? | | ??????????????????????# """ ##???????? | | ??????????????????????# ##????????? | | ?????????????????????## ##########? | | ???????????????####### ## ## #? | | ?????????"" #### #### ### #? | +----------------------------------------------------+ Best States ------------- Heat Dissipation 25 Energy Generation 10 Energy Capacity 250 Matter Stores 300 Matter Capacity 300 Sight Range 16 Terrain Scan Density 10 Armor Coverage 150 Evasion (%) 55 Item Schematics ----------------- None Robot Schematics ------------------ None Fabricated ------------ Nothing Repaired ---------- Nothing Alien Tech Used ----------------- None Achievements -------------- None Challenges ------------ None Game ------ Seed TeslaBiocellInterrupter Manual? 0 Play Time 00:08:38 Cumulative 7.4 hours Start 2025.07.24 @ 12:56:03 End 2025.07.24 @ 13:01:58 Sessions 1 Manual Loads 0 Difficulty Rogue Special Mode None Game No. 13 Rogue 13 Adventurer 0 Explorer 0 Win Type - Total 0 Types 0/0/0/0/0/0/0/0/0/0 Lore% 5 Gallery% 13 Achievement% 14 Wizard Run 0 Options --------- Layout 1 ASCII 0 Keyboard 0 Movement Mouse Keybinds 0 Fullscreen 1 Font 32/SmallcapsGlow Map View 50x35 Zoom Use 0% Tactical HUD 1 Map Filters NONE Filters NONE Steam 1 RUN: 6b7d6d80-2cec-4c9b-8cd8-908da3531d88